bitfinex-derivatives/quotes_ETHF0:USTF0_20250919
["timestamp","ask_amount","ask_price","bid_price","bid_amount"]
[1758244339697,0.6155,4609.5,4609.4,4.27246696]
[1758244340997,0.6155,4609.5,4609.4,4.22986696]
[1758244341800,0.6155,4609.5,4609.4,4.27246696]
[1758244342996,0.8171,4609.5,4609.4,3.3424]
[1758244343202,1.03405001,4609.5,4609.4,3.2078]
[1758244343497,6.67641824,4609.5,4609.4,3.2078]
[1758244344592,6.89641824,4609.5,4609.4,3.2078]
[1758244344791,6.67946823,4609.5,4609.4,3.2078]
[1758244345398,6.69944705,4609.5,4609.4,3.2078]
[1758244348303,5.81198009,4609.5,4609.4,3.2078]
[1758244348502,1.07208009,4609.5,4609.4,3.3863]
[1758244348700,0.66475079,4609.5,4609.4,3.3863]
[1758244348900,0.66475079,4609.5,4609.4,3.3438]
[1758244349102,0.85685079,4609.5,4609.4,3.3438]
[1758244350608,0.85685079,4609.5,4609.4,3.5638]
[1758244351705,0.85685079,4609.5,4609.4,3.6063]
[1758244351907,0.66475079,4609.5,4609.4,3.6063]
[1758244352610,0.2944,4609.8,4609.7,0.1785]
[1758244352806,0.54709302,4609.8,4609.7,1.06596696]
[1758244353804,0.93769302,4609.8,4609.7,1.02346696]
[1758244354005,1.4678252,4609.8,4609.7,1.02346696]
[1758244354209,0.8075,4609.5,4609.4,3.4278]
[1758244354510,1.06019302,4609.5,4609.4,3.2078]
[1758244354705,1.94765998,4609.5,4609.4,3.2078]
[1758244355100,1.06019302,4609.5,4609.4,3.2078]
[1758244357810,1.06019302,4609.5,4609.4,4.2462789]
[1758244359410,1.06019302,4609.5,4609.4,3.2078]
[1758244360412,1.06019302,4609.5,4609.4,3.2758]
[1758244361115,0.66959302,4609.5,4609.4,3.3438]
[1758244361717,0.86169302,4609.5,4609.4,3.3438]
[1758244362013,0.86169302,4609.5,4609.4,3.73411]
[1758244362509,1.06019302,4609.5,4609.4,3.3438]
[1758244363101,1.06019302,4609.5,4609.4,3.73411]
[1758244363911,1.06019302,4609.5,4609.4,4.7725889]
[1758244365012,1.06024445,4609.5,4609.4,4.7725889]
[1758244365718,1.06024445,4609.5,4609.4,4.3822789]
[1758244366216,1.06024445,4609.5,4609.4,4.7725889]
[1758244367217,1.06024445,4609.5,4609.4,4.3822789]
[1758244367411,0.54714445,4609.5,4609.4,4.4247789]
[1758244367615,0.54714445,4609.5,4609.4,4.8150889]
[1758244367814,0.54714445,4609.5,4609.4,4.4247789]
[1758244368009,0.66964445,4609.5,4609.4,4.4247789]
[1758244368210,0.66964445,4609.5,4609.4,4.8150889]
[1758244368816,1.06024445,4609.5,4609.4,4.3822789]
[1758244370010,1.06024445,4609.5,4609.4,4.7725889]
[1758244370210,0.66964445,4609.5,4609.4,4.8150889]
[1758244370817,0.86174445,4609.5,4609.4,4.7725889]
[1758244371115,0.86174445,4609.5,4609.4,4.3822789]
[1758244371317,0.86174445,4609.5,4609.4,4.7725889]
[1758244372313,1.39204602,4609.5,4609.4,4.7725889]
[1758244374919,1.19994602,4609.5,4609.4,4.7725889]
[1758244375217,0.78308661,4609.5,4609.4,4.8149889]
[1758244375617,0.1161,4610.0,4609.9,0.39027]
[1758244375812,0.89921421,4610.0,4609.9,3.73387]
[1758244376017,1.09851421,4610.0,4609.9,4.7723489]
[1758244376210,1.20781421,4610.0,4609.9,4.8147489]
[1758244380035,1.40711421,4610.0,4609.9,4.7723489]
[1758244380331,1.61831421,4610.0,4609.9,3.2078]
[1758244380526,1.61831421,4610.0,4609.9,3.59807]
[1758244380834,1.40711421,4610.0,4609.9,3.77527]
[1758244381032,1.40711421,4610.0,4609.9,3.73307]
[1758244381331,0.78311421,4610.0,4609.9,3.99527]
[1758244382033,1.07121421,4610.0,4609.9,3.99527]
[1758244382232,0.54088635,4610.0,4609.9,3.99527]
[1758244384032,0.65728635,4610.0,4609.9,3.99527]
[1758244384523,0.85238635,4610.0,4609.9,3.95307]
[1758244385831,0.85238635,4610.0,4609.9,3.99527]
[1758244387938,0.85238635,4610.0,4609.9,3.95307]
[1758244388938,1.06358635,4610.0,4609.9,3.2753]
[1758244389141,1.59384959,4610.0,4609.9,4.2462789]
[1758244390639,1.59384959,4610.0,4609.9,3.2078]
[1758244390830,6.63232849,4610.0,4609.7,0.0216]
[1758244391135,0.6944,4609.8,4609.7,0.0216]
[1758244391334,1.47744959,4609.8,4609.7,0.0216]
[1758244391535,0.6944,4609.3,4609.2,3.2072789]
[1758244391735,1.47744959,4609.3,4609.2,1.0384789]
[1758244392044,0.8108,4609.0,4608.9,4.5337789]
[1758244392245,1.06358635,4609.0,4608.9,4.5337789]
[1758244392539,1.06358635,4609.0,4608.9,3.2078]
[1758244393235,1.06358635,4609.0,4608.5,2.1688]
[1758244393236,0.6944,4608.6,4608.5,2.1688]
[1758244393432,1.47743,4608.6,4608.5,2.1688]
[1758244394835,0.1164,4608.5,4608.3,0.0216]
[1758244395030,0.94718635,4608.4,4608.3,0.0891]
[1758244396439,0.6944,4608.4,4608.3,0.0891]
[1758244397038,0.6944,4608.4,4608.3,0.0216]
[1758244397433,0.2881,4608.3,4608.0,1.0384789]
[1758244397745,0.8108,4608.0,4607.9,3.2078]
[1758244398148,0.8108,4608.0,4607.9,3.2753]
[1758244398939,0.8108,4608.0,4607.9,4.3137789]
[1758244400246,0.8108,4608.0,4607.9,4.3812789]
[1758244401848,0.8108,4608.0,4607.9,3.2753]
[1758244402048,0.8108,4608.0,4607.9,3.2078]
[1758244404541,0.8108,4608.0,4607.8,0.22]
[1758244404542,0.8108,4608.0,4607.7,0.0217]
[1758244404848,0.6944,4607.8,4607.7,0.0217]
[1758244405241,0.4063,4607.4,4607.3,3.2753]
[1758244405446,0.6944,4607.4,4607.3,3.2753]
[1758244405947,0.6944,4607.4,4607.3,3.3428]
[1758244406151,0.4832,4607.4,4607.3,3.3428]
[1758244407152,0.4832,4607.4,4607.3,3.385]
[1758244407852,0.4832,4607.4,4607.3,3.3428]
[1758244411456,0.6906,4607.4,4607.3,3.3428]
[1758244411845,0.6906,4607.4,4607.3,3.2753]
[1758244415757,0.2054,4607.5,4607.4,1.8819]
[1758244416254,0.4128,4607.5,4607.4,1.8819]
[1758244416455,0.4128,4607.5,4607.4,2.1992]
[1758244417655,0.4128,4607.5,4607.4,2.58968]
[1758244417847,0.7062,4607.5,4607.4,2.58968]
[1758244418353,0.4988,4607.9,4607.8,0.721]
[1758244418659,1.70611211,4607.9,4607.8,0.721]
[1758244418953,1.48908211,4607.9,4607.8,0.721]
[1758244424058,0.98828211,4607.9,4607.8,0.721]
[1758244424248,1.20828211,4607.9,4607.8,0.721]
[1758244424861,1.50168211,4607.9,4607.8,0.721]
[1758244425558,1.70908211,4607.9,4607.8,0.721]
[1758244425753,1.70908211,4607.9,4607.8,0.5123]
[1758244426460,1.70972535,4607.9,4607.8,0.5123]
[1758244427662,1.70972535,4607.9,4607.8,0.721]
[1758244430949,1.70972535,4607.9,4607.6,0.0217]
[1758244430950,3.2078,4607.0,4606.0,1.61759146]
[1758244431153,3.2078,4605.2,4604.5,0.125]
[1758244431354,4.98439192,4604.6,4603.5,0.125]
[1758244431550,4.09609596,4603.6,4603.5,0.5287]
[1758244431765,5.10843458,4603.6,4603.5,0.5287]
[1758244433063,5.10843458,4603.6,4603.5,0.846]
[1758244435152,3.99313862,4603.6,4603.5,0.846]
[1758244435463,4.88143458,4603.6,4603.5,0.846]
[1758244435654,5.10843458,4603.6,4603.5,0.846]
[1758244436460,4.22013862,4603.6,4603.5,0.846]
[1758244436762,5.10843458,4603.6,4603.5,0.846]
[1758244436961,4.88143458,4603.6,4603.5,0.846]
[1758244437158,5.10843458,4603.6,4603.5,0.846]
[1758244439864,4.88143458,4603.6,4603.5,0.846]
[1758244440165,5.10843458,4603.6,4603.5,0.846]
[1758244441159,6.66043738,4603.6,4603.5,0.846]
[1758244441559,5.10843458,4603.6,4603.5,0.846]
[1758244441957,5.24883721,4603.6,4603.5,0.846]
[1758244442260,0.88829596,4603.1,4603.0,0.329]
[1758244442453,1.81403721,4603.1,4603.0,0.5255]
[1758244443770,1.81403721,4603.1,4603.0,4.5255]
[1758244444261,1.81403721,4603.1,4603.0,4.8362]
[1758244445162,0.92574125,4603.1,4603.0,4.8362]
[1758244445362,1.81403721,4603.1,4603.0,4.8362]
[1758244447759,0.92574125,4603.1,4603.0,4.8362]
[1758244448861,0.92574125,4603.1,4603.0,6.11533596]
[1758244451869,0.92574125,4603.1,4603.0,5.72449596]
[1758244452371,0.92574125,4603.1,4603.0,4.8362]
[1758244453372,0.92574125,4603.1,4603.0,5.22705]
[1758244454263,0.92574125,4603.1,4603.0,4.8362]
[1758244454469,0.92574125,4603.1,4603.0,5.22705]
[1758244454669,0.92574125,4603.1,4603.0,4.8362]
[1758244455070,0.92574125,4603.1,4603.0,5.22705]
[1758244456076,0.92574125,4603.1,4603.0,4.8362]
[1758244456276,0.95550286,4603.1,4603.0,4.8362]
[1758244456465,2.49864095,4603.1,4603.0,4.8362]
[1758244457178,2.49864095,4603.1,4603.0,5.22705]
[1758244457366,0.95550286,4603.1,4603.0,5.22705]
[1758244458280,0.95550286,4603.1,4603.0,4.8362]
[1758244458781,2.50815669,4603.1,4603.0,5.22705]
[1758244459372,0.95550286,4603.1,4603.0,4.05381759]
[1758244459572,0.95550286,4603.1,4603.0,4.57281759]
[1758244459772,0.95550286,4603.1,4603.0,4.18196759]
[1758244460377,2.91599788,4603.1,4603.0,2.42211897]
[1758244460779,0.95550286,4603.1,4603.0,2.42211897]
[1758244461175,0.95550286,4603.1,4603.0,2.81296897]
[1758244462070,4.45777985,4603.1,4603.0,0.8297]
[1758244462275,4.94997985,4603.1,4603.0,0.8297]
[1758244463375,4.65917985,4603.1,4603.0,0.8297]
[1758244464577,2.25159882,4603.1,4603.0,0.8297]
[1758244464782,0.95550286,4603.1,4603.0,1.71799596]
[1758244464980,0.95550286,4603.1,4603.0,1.94299596]
[1758244465784,2.51889324,4603.1,4603.0,1.94299596]
[1758244466088,0.95550286,4603.1,4603.0,5.54164596]
[1758244466977,1.09469596,4603.6,4603.5,0.8297]
[1758244467384,3.50227699,4603.6,4603.5,0.8297]
[1758244467881,3.79657699,4603.6,4603.5,0.8297]
[1758244469181,1.85769038,4604.2,4604.0,0.403]
[1758244469385,2.74469303,4604.9,4604.6,0.6938]
[1758244469386,0.2943,4604.9,4604.6,0.6938]
[1758244469592,2.89348103,4604.8,4604.7,0.6938]
[1758244469891,0.6921,4604.8,4604.7,0.5006]
[1758244472590,0.6921,4604.4,4604.3,1.2171]
[1758244472792,1.58039596,4604.4,4604.3,1.2171]
[1758244472998,3.98797699,4604.4,4604.3,1.2171]
[1758244473193,3.98797699,4604.4,4604.3,1.5079]
[1758244473394,3.09968103,4604.4,4604.3,1.7177]
[1758244474197,0.1137,4605.0,4604.3,1.7177]
[1758244474198,3.2078,4605.3,4605.2,0.2098]
[1758244474394,2.40758103,4605.4,4605.3,0.6938]
[1758244474595,2.61378103,4605.4,4605.3,0.6938]
[1758244475195,3.5021,4605.8,4605.5,0.1218]
[1758244475396,2.40758103,4605.6,4605.5,0.8156]
[1758244475798,3.2078,4605.8,4605.6,0.2908]
[1758244476098,3.414,4605.8,4605.7,0.6938]
[1758244476499,3.414,4605.8,4605.7,1.58209596]
[1758244476802,3.2078,4605.8,4605.7,1.58209596]
[1758244477400,3.8999,4605.8,4605.7,1.58209596]
[1758244478903,0.3978,4605.6,4605.5,1.17909596]
[1758244479099,0.6921,4605.4,4605.3,0.226]
[1758244479303,0.127,4605.5,4605.0,4.8375]
[1758244479304,0.6921,4605.1,4605.0,4.7157]
[1758244479604,0.3978,4605.1,4605.0,5.4665]
[1758244479805,0.5005,4605.4,4605.3,0.403]
[1758244480000,0.5005,4605.4,4605.3,0.6938]
[1758244480197,3.09968103,4605.4,4605.3,0.6938]
[1758244481402,2.80538103,4605.4,4605.3,0.6938]
[1758244481601,3.09968103,4605.4,4605.3,0.6938]
[1758244481799,0.2062,4605.4,4605.3,0.6938]
[1758244482002,0.2943,4605.7,4605.4,0.2908]
[1758244482207,2.61378103,4605.7,4605.6,1.73408104]
[1758244482505,3.09968103,4605.7,4605.6,1.73408104]
[1758244485599,3.09968103,4605.7,4605.6,0.484]
[1758244485806,3.09968103,4605.7,4604.7,0.5006]
[1758244485807,0.6921,4604.8,4604.7,0.5006]
[1758244486404,0.6921,4604.8,4604.7,1.54088104]
[1758244487608,0.6921,4604.8,4604.7,1.73408104]
[1758244487810,0.2062,4604.8,4604.7,0.6938]
[1758244488006,0.3978,4604.8,4604.7,1.73408104]
[1758244488206,0.6921,4604.8,4604.7,1.73408104]
[1758244490210,0.2062,4604.8,4604.7,1.73408104]
[1758244490410,3.414,4605.1,4605.0,0.8156]
[1758244490708,3.8999,4605.1,4605.0,0.8156]
[1758244492414,3.8999,4605.1,4605.0,0.5006]
[1758244493512,3.6056,4605.1,4604.8,1.26528104]
[1758244493707,0.3978,4604.9,4604.8,1.26528104]
[1758244493905,0.6921,4604.9,4604.8,1.76588104]
[1758244494303,3.2078,4605.1,4604.8,1.95908104]
[1758244494509,0.6921,4605.4,4605.3,0.5006]
[1758244494707,0.9171,4605.4,4605.3,0.5006]
[1758244496212,1.14783074,4605.4,4605.3,0.5006]
[1758244497905,1.14783074,4605.4,4604.9,0.2981]
[1758244498106,0.931,4605.4,4605.3,0.2118]
[1758244498311,1.48381368,4605.4,4605.3,0.5099]
[1758244498507,1.70881368,4605.4,4605.0,1.04028104]
[1758244498821,0.3917,4604.8,4604.7,0.7118]
[1758244499019,0.1973,4604.8,4604.7,0.7118]
[1758244499617,0.3082,4605.1,4604.7,0.7118]
[1758244499814,0.5055,4605.1,4605.0,1.87038104]
[1758244500009,0.1973,4605.2,4605.1,0.2981]
[1758244500312,0.6999,4605.2,4605.1,0.5099]
[1758244500517,0.93060939,4605.2,4605.1,0.5099]
[1758244501412,0.6999,4605.1,4605.0,1.04028104]
[1758244501616,0.3917,4604.9,4604.8,0.5099]
[1758244501817,0.6999,4604.9,4604.8,0.5099]
[1758244503220,1.24860799,4604.9,4604.8,0.5099]
[1758244503419,1.24860799,4604.9,4604.8,0.7118]
[1758244504312,1.24860799,4604.9,4604.8,1.1025]
[1758244504516,0.54870799,4604.9,4604.8,1.1025]
[1758244505518,1.24860799,4604.9,4604.8,0.7118]
[1758244505720,1.24860799,4604.9,4604.8,1.75208104]
[1758244506113,1.24860799,4604.9,4604.8,2.14278104]
[1758244506419,0.94040799,4604.9,4604.8,2.14278104]
[1758244506919,0.94040799,4604.9,4604.8,1.75208104]
[1758244507514,0.94040799,4604.9,4604.8,2.14278104]
[1758244509121,0.94040799,4604.9,4604.8,1.75208104]
[1758244509721,1.24860799,4604.9,4604.8,1.75208104]
[1758244510719,1.24860799,4604.9,4604.8,1.97608104]
[1758244512223,0.6999,4604.9,4604.8,1.97608104]
[1758244512417,0.3082,4604.8,4604.6,2.1719]
[1758244512621,2.52056373,4604.7,4604.6,2.1719]
[1758244512921,2.74456373,4604.7,4604.6,2.1719]
[1758244513624,0.6999,4604.4,4604.3,0.0217]
[1758244513812,5.49735076,4604.4,4604.3,0.0217]
[1758244514016,0.6999,4604.3,4604.2,0.2981]
[1758244515413,0.6999,4604.3,4604.1,2.1719]
[1758244515414,0.6157,4604.3,4604.1,2.1719]
[1758244515614,1.48004103,4604.2,4604.1,2.1719]
[1758244516328,1.48004103,4604.2,4603.7,0.2981]
[1758244516518,0.1973,4603.6,4603.5,1.0541]
[1758244516721,0.6999,4603.6,4603.5,2.09438104]
[1758244520231,0.6999,4603.6,4603.5,1.87038104]
[1758244521326,0.3917,4603.6,4603.5,1.87038104]
[1758244522123,0.6999,4603.6,4603.5,1.87038104]
[1758244522519,3.4318,4603.9,4603.8,0.4137]
[1758244522520,3.6291,4603.9,4603.8,0.4137]
[1758244522725,4.1317,4603.9,4603.8,0.7118]
[1758244523632,3.9077,4603.9,4603.8,0.7118]
[1758244523925,3.9077,4603.9,4603.8,1.75208104]
[1758244523926,3.6281,4603.9,4603.8,1.75208104]
[1758244524326,3.9363,4603.9,4603.8,1.75208104]
[1758244524526,3.2078,4603.9,4603.8,1.75208104]
[1758244528633,3.2078,4603.9,4603.8,2.14286104]
[1758244528833,3.2078,4603.9,4603.8,1.75208104]
[1758244529029,3.4051,4603.9,4603.8,1.75208104]
[1758244529229,3.8926,4603.9,4603.8,0.7118]
[1758244529427,3.8926,4603.9,4603.8,1.75208104]
[1758244529624,3.8926,4603.9,4603.8,0.5099]
[1758244529828,3.8282,4603.9,4603.5,1.04028104]
[1758244530135,0.8173,4603.5,4603.4,2.1719]
[1758244531635,0.8173,4603.5,4603.4,2.4615]
[1758244533330,0.8173,4603.5,4603.4,2.1719]
[1758244534837,0.8173,4603.5,4603.4,2.4615]
[1758244535741,0.8173,4603.5,4603.4,2.1719]
[1758244535940,0.8173,4603.5,4603.4,2.6571]
[1758244539739,6.63926876,4603.5,4602.6,0.2896]
[1758244539941,3.9016,4602.7,4602.6,0.4852]
[1758244540239,4.1246,4602.7,4602.6,0.4852]
[1758244541141,5.16488104,4602.7,4602.6,0.4852]
[1758244541844,5.01497149,4602.7,4602.6,0.4852]
[1758244542841,5.01497149,4602.7,4602.1,0.2896]
[1758244543044,0.89037149,4602.3,4602.1,0.2896]
[1758244543243,0.89037149,4602.3,4602.2,0.1956]
[1758244543441,1.29677149,4602.3,4602.2,0.6876]
[1758244543841,1.58417149,4602.3,4602.2,0.6876]
[1758244546648,1.58417149,4602.3,4602.2,0.4852]
[1758244547546,1.58417149,4602.3,4601.8,0.2896]
[1758244547749,1.58417149,4601.9,4601.8,0.6876]
[1758244548450,0.6938,4601.9,4601.8,0.6876]
[1758244548850,3.9016,4601.9,4601.8,0.6876]
[1758244549245,4.79197149,4601.9,4601.8,0.6876]
[1758244550551,5.01497149,4601.9,4601.8,0.6876]
[1758244551051,5.01397149,4601.9,4601.8,0.6876]
[1758244553553,5.01397149,4601.9,4601.8,0.4852]
[1758244554448,5.01397149,4601.9,4601.6,0.2896]
[1758244554654,5.01397149,4601.9,4601.5,0.1255]
[1758244555150,5.01397149,4601.9,4601.8,0.4846]
[1758244555359,5.01397149,4601.9,4601.8,0.6834]
[1758244556656,4.79197149,4601.9,4601.8,0.6834]
[1758244556954,5.01397149,4601.9,4601.8,0.6834]
[1758244558054,3.8362,4601.9,4601.8,0.6834]
[1758244558254,4.1316,4601.9,4601.8,0.6834]
[1758244558651,3.9096,4601.9,4601.8,0.6834]
[1758244558858,3.6069,4601.9,4601.8,0.6834]
[1758244559055,3.8289,4601.9,4601.8,0.6834]
[1758244559255,4.1316,4601.9,4601.8,0.6834]
[1758244560553,4.1316,4601.9,4601.0,0.1472]
[1758244560760,2.47054298,4601.1,4601.0,0.0217]
[1758244560948,2.69254298,4601.1,4601.0,0.0217]
[1758244561148,0.8131,4601.0,4600.9,2.1733]
[1758244563555,0.8131,4601.0,4600.4,2.56437]
[1758244563762,1.58017149,4600.6,4600.5,0.4977]
[1758244563962,1.80217149,4600.6,4600.5,0.4977]
[1758244564661,1.80217149,4600.6,4600.5,0.8293]
[1758244565060,0.9118,4600.6,4600.5,0.8293]
[1758244565260,0.4163,4600.6,4600.5,0.8293]
[1758244565657,0.719,4600.6,4600.5,0.8293]
[1758244565858,0.9118,4600.6,4600.5,0.8293]
[1758244567156,3.2078,4600.7,4600.6,0.4977]
[1758244567460,3.4298,4600.7,4600.6,1.59427149]
[1758244568671,3.6241,4600.7,4600.6,1.59427149]
[1758244568970,4.1196,4600.7,4600.6,0.7039]
[1758244569573,3.8976,4600.7,4600.6,0.7039]
[1758244569766,4.1196,4600.7,4600.6,0.7039]
[1758244571471,3.8169,4600.7,4600.4,2.1733]
[1758244571665,1.58017149,4600.5,4600.4,2.4631]
[1758244571864,1.58017149,4600.5,4600.4,2.8772]
[1758244575569,0.6898,4600.5,4600.4,3.76757149]
[1758244575776,0.1943,4600.5,4600.4,3.76757149]
[1758244577072,3.2078,4600.7,4600.6,0.7039]
[1758244577279,3.4298,4600.7,4600.6,1.59427149]
[1758244577478,3.4298,4600.7,4600.6,0.7039]
[1758244577667,3.2078,4600.7,4600.6,1.59427149]
[1758244578073,3.4021,4600.7,4600.6,1.59427149]
[1758244580481,3.2078,4600.7,4600.6,1.81627149]
[1758244580676,3.2078,4600.7,4600.6,2.20733149]
[1758244581075,3.4298,4601.2,4601.1,0.7039]
[1758244581270,3.98300813,4601.2,4601.1,1.59427149]
[1758244581582,3.2078,4601.2,4601.1,1.09491]
[1758244584376,3.5105,4602.1,4601.2,0.97751]
[1758244584582,3.4021,4602.1,4602.0,1.71967149]
[1758244584782,3.4021,4602.1,4602.0,1.94167149]
[1758244586484,3.7048,4602.1,4602.0,1.94167149]
[1758244586682,3.8976,4602.1,4602.0,1.94167149]
[1758244587281,3.5949,4602.1,4602.0,1.94167149]
[1758244587978,3.902,4602.1,4602.0,1.94167149]
[1758244588883,0.5093,4602.4,4602.3,0.404]
[1758244589087,0.2022,4602.4,4602.3,1.80947149]
[1758244590082,3.2078,4602.7,4602.6,0.6971]
[1758244590283,3.41,4602.7,4602.6,0.9191]
[1758244591083,3.41,4602.7,4602.6,3.0924]
[1758244592590,3.2078,4602.7,4602.6,3.0924]
[1758244592993,3.5149,4604.1,4602.6,11.11474149]
[1758244593195,3.2078,4604.6,4604.0,2.30744298]
[1758244593484,0.7174,4604.5,4604.4,1.37877149]
[1758244593786,0.7174,4604.5,4604.4,1.60077149]
[1758244594191,0.7174,4604.5,4604.4,1.37877149]
[1758244594389,0.7174,4604.5,4604.4,1.60077149]
[1758244599692,0.8316,4604.5,4604.0,0.3148]
[1758244599891,0.8316,4604.5,4604.2,0.89037149]
[1758244600085,0.4103,4604.3,4604.2,1.18347149]
[1758244600285,0.7174,4604.3,4604.2,1.37877149]
[1758244600682,0.7174,4604.3,4604.2,1.58747149]
[1758244601795,0.7174,4604.3,4604.2,0.6971]
[1758244602991,0.7174,4604.3,4604.2,0.9181]
[1758244605896,0.7174,4604.3,4604.2,0.6971]
[1758244606097,0.7174,4604.3,4604.2,0.9181]
[1758244609102,0.7174,4604.3,4604.2,0.6971]
[1758244609302,0.7174,4604.3,4604.2,0.9181]
[1758244611101,0.2022,4604.3,4604.2,0.9181]
[1758244611397,0.5093,4604.3,4604.2,0.9181]
[1758244611597,0.7174,4604.3,4604.2,0.9181]
[1758244615300,1.26987723,4604.3,4604.2,0.9181]
[1758244617507,0.96277723,4604.3,4604.2,0.9181]
[1758244617808,0.55247723,4604.3,4604.2,1.30885]
[1758244619004,0.74367723,4604.3,4604.2,0.9181]
[1758244619403,0.9702825,4604.3,4604.2,0.9181]
[1758244620405,1.2700825,4604.3,4604.2,0.9181]
[1758244621701,1.27227445,4604.3,4604.2,0.9181]
[1758244622507,1.47247445,4604.3,4604.2,0.9181]
[1758244623409,1.47247445,4604.3,4604.2,1.30885]
[1758244623610,1.47247445,4604.3,4604.2,0.6971]
[1758244623809,1.47247445,4604.3,4604.2,0.9181]
[1758244624410,1.47247445,4604.3,4604.2,1.30885]
[1758244625409,1.17267445,4604.3,4604.2,1.30885]
[1758244625816,1.17267445,4604.3,4604.2,0.9181]
[1758244626306,1.47247445,4604.3,4603.9,0.0217]
[1758244626504,1.0408391,4604.5,4603.9,0.0217]
[1758244626505,4.0218,4604.0,4603.9,0.0217]
[1758244626704,4.0218,4604.0,4603.8,2.1733]
[1758244626705,6.36646483,4604.0,4603.8,2.1733]
[1758244626907,6.36646483,4604.0,4602.8,1.0408391]
[1758244626908,0.5141,4603.0,4602.8,1.5798391]
[1758244627104,1.47247445,4602.9,4602.8,1.7764391]
[1758244627306,1.47247445,4602.9,4602.8,1.2618391]
[1758244627508,1.47247445,4602.9,4602.8,1.0408391]
[1758244628711,1.47247445,4602.9,4602.1,5.77182]
[1758244628917,0.6912,4602.6,4602.5,0.5146]
[1758244629119,1.47247445,4602.6,4602.5,0.7356]
[1758244630016,1.47247445,4602.6,4602.5,0.5146]
[1758244630322,1.47247445,4602.6,4602.5,0.7356]
[1758244631628,1.47247445,4602.6,4602.5,0.5146]
[1758244631830,1.47247445,4602.6,4602.5,0.7356]
[1758244632429,0.91780527,4602.6,4602.5,0.7356]
[1758244632924,0.91780527,4602.6,4602.5,0.9279]
[1758244633125,0.91780527,4602.6,4602.5,1.0498]
[1758244633525,0.6912,4602.6,4602.5,1.0498]
[1758244633729,3.899,4604.5,4604.4,0.7069]
[1758244633931,4.69861439,4604.5,4604.4,1.7477391]
[1758244634126,4.4522431,4604.5,4604.4,1.7477391]
[1758244635334,4.4522431,4604.5,4604.4,0.7069]
[1758244635522,4.4522431,4604.5,4604.4,1.7477391]
[1758244636331,3.899,4604.5,4604.4,1.7477391]
[1758244638329,3.899,4604.5,4604.4,1.5554391]
[1758244638535,4.0132,4604.5,4604.4,1.0408391]
[1758244639429,0.2998,4604.4,4604.1,0.221]
[1758244639636,3.7134,4604.5,4603.9,2.1731]
[1758244639637,0.8139,4604.0,4603.9,3.2139391]
[1758244639827,0.8139,4604.0,4603.9,3.7285391]
[1758244640035,0.6912,4604.0,4603.9,3.7285391]
[1758244640832,0.6912,4604.0,4603.9,3.9208391]
[1758244641333,0.3914,4604.0,4603.9,3.9208391]
[1758244643440,0.6912,4604.0,4603.9,3.9208391]
[1758244643632,0.6912,4604.0,4603.9,2.88]
[1758244643834,0.6912,4604.0,4603.9,3.9208391]
[1758244644438,0.6912,4604.0,4603.9,4.3116091]
[1758244645640,0.1912,4604.2,4604.1,1.09766]
[1758244645932,0.1912,4604.2,4604.1,0.7069]
[1758244646532,0.6912,4604.2,4604.1,1.7477391]
[1758244649237,0.6912,4604.2,4604.1,0.7069]
[1758244649438,1.24453877,4604.2,4604.1,0.5146]
[1758244651644,1.24453877,4604.2,4604.1,0.716]
[1758244652344,0.6912,4604.2,4604.1,0.716]
[1758244654544,0.3914,4604.2,4604.1,0.716]
[1758244654746,3.7187,4604.5,4604.1,0.716]
[1758244655045,0.1942,4604.4,4604.3,1.4479391]
[1758244655543,0.6935,4604.4,4604.3,1.7346391]
[1758244656044,0.4036,4604.4,4604.3,1.7346391]
[1758244656246,0.6935,4604.4,4604.3,1.7346391]
[1758244656844,0.4036,4604.4,4604.3,1.7346391]
[1758244657643,0.6935,4604.4,4604.3,1.7346391]
[1758244657946,3.2078,4604.5,4604.4,1.08453]
[1758244658145,3.2078,4604.5,4604.4,2.1253691]
[1758244658348,3.2078,4604.5,4604.4,1.30553]
[1758244661745,3.2078,4604.5,4604.4,2.19486808]
[1758244662846,3.2078,4604.5,4604.4,3.08420616]
[1758244663045,0.221,4604.9,4604.8,0.4071]
[1758244663245,0.1942,4605.1,4605.0,0.1258]
[1758244663442,0.98076245,4605.1,4605.0,1.70893808]
[1758244664245,1.27066245,4605.1,4605.0,1.70893808]
[1758244664446,0.98076245,4605.1,4605.0,1.70893808]
[1758244665044,1.27066245,4605.1,4605.0,1.70893808]
[1758244665244,1.48006245,4605.1,4605.0,1.70893808]
[1758244667049,1.19016245,4605.1,4605.0,1.70893808]
[1758244667246,0.96103728,4605.1,4605.0,1.70893808]
[1758244667748,1.25093728,4605.1,4605.0,1.70893808]
[1758244668550,1.25093728,4605.1,4605.0,2.09961808]
[1758244668749,0.96103728,4605.1,4605.0,2.09961808]
[1758244669248,1.25093728,4605.1,4605.0,2.09961808]
[1758244669450,1.47989061,4605.1,4605.0,2.09961808]
[1758244669649,1.47989061,4605.1,4605.0,1.70893808]
[1758244671144,0.78639061,4605.1,4605.0,2.59827616]
[1758244671953,0.55743728,4605.1,4605.0,2.59827616]
[1758244672147,3.2078,4605.3,4605.2,0.6938]
[1758244672355,3.7647764,4605.3,4605.2,1.80413808]
[1758244673557,4.18260589,4605.3,4605.2,1.80413808]
[1758244674357,3.62562949,4605.3,4605.2,1.80413808]
[1758244676055,3.62562949,4605.3,4605.2,1.58313808]
[1758244676253,3.402,4605.3,4605.2,1.80413808]
[1758244676757,3.63063267,4605.3,4605.2,1.80413808]
[1758244680461,4.13803267,4605.3,4605.2,1.80413808]
[1758244682360,4.69584429,4605.3,4605.2,1.80413808]
[1758244683459,4.46721162,4605.3,4605.2,1.80413808]
[1758244685460,4.17051162,4605.3,4605.2,1.80413808]
[1758244685964,4.17051162,4605.3,4605.2,1.58313808]
[1758244686163,4.17051162,4605.3,4605.2,1.80413808]
[1758244686565,4.46721162,4605.3,4605.2,1.80413808]
[1758244686865,4.46749181,4605.3,4605.2,1.80413808]
[1758244688055,3.96009181,4605.3,4605.2,1.80413808]
[1758244688859,3.76589181,4605.3,4605.2,1.80413808]